Cogmind - Beta 11 @@@ ROGUE MODE // 2022.03.31 @ 01:44:42 Player: spruce Result: Destroyed by Z-Imprinter with Zionite Laser-M Performance ------------- Evolutions (3) 1500 Regions Visited (9) 1800 Robots Destroyed (43) 215 Value Destroyed (1047) 1047 Prototype IDs (5) 100 Alien Tech Used (0) 0 Bonus (366) 366 TOTAL SCORE: 5028 Bonus ------- Follower Combat Kills 180 Met Imprinter 300 Friendly Fire -114 Cogmind --------- Core Integrity 0/700 Matter 208/300 Energy 338/600 System Corruption 1% Temperature Warm (168) Movement Core (1500) Ox29 Location -6/Deep Caves Parts ------- > --- POWER (1) -------- (None) > --- PROPULSION (2) --- (None) > --- UTILITY (8) ------ Huge Storage Unit Advanced Energy Well Signal Interpreter > --- WEAPON (2) ------- Improved EM Pulse Cannon > --- INVENTORY (25) --- Improved Deuterium Engine Makeshift Power Source Angular Momentum Engine Fission Core Improved Carbon-fiber Leg Makeshift Leg Enhanced Flexi-carbon Leg Compact Wheel Compact Wheel Improved Sensor Array Surveybot 24 Scanner 0b10 Decoder Chip [Looter] 0b10 Decoder Chip [Scout] 0b10 Decoder Chip [Skirmisher] Improved Shield Generator Long-range Tractor Beam Hacking Drone Bay (1/1) Heavy Ion Cannon Makeshift Hammer CR-A16's Pointy Stick Peak State ------------ > --- POWER ------------ Nuclear Core > --- PROPULSION ------- Armored Wheel Armored Wheel > --- UTILITY ---------- Improved Cooling System Huge Storage Unit Advanced Energy Well Machine Analyzer Signal Interpreter Surveybot 24 Scanner Surveybot 24 Chip Experimental Thermal Shield > --- WEAPON ----------- Phase Cannon CR-A16's Pointy Stick > --- INVENTORY -------- Improved Deuterium Engine Makeshift Power Source Angular Momentum Engine Fission Core Improved Carbon-fiber Leg Makeshift Leg Enhanced Flexi-carbon Leg Compact Wheel Compact Wheel Improved Sensor Array 0b10 Decoder Chip [Looter] 0b10 Decoder Chip [Scout] 0b10 Decoder Chip [Skirmisher] Improved Shield Generator Long-range Tractor Beam Hacking Drone Bay Improved EM Pulse Cannon Heavy Ion Cannon Neutron Cannon Advanced Assault Cannon Shock Bomb Launcher Improved Grenade Launcher Makeshift Hammer [Rating: 67] Favorites ----------- Power Neutrino Core Engine Ion Engine Power Core Neutrino Core Propulsion Armored Wheel Leg Improved Carbon-fiber Leg Wheel Armored Wheel Utility Huge Storage Unit Device Improved Terrain Scanner Storage Huge Storage Unit Processor Signal Interpreter Protection Improved Medium Armor Plating Weapon Heavy Assault Rifle Energy Gun EM Pulse Gun Energy Cannon Heavy Ion Cannon Ballistic Gun Heavy Assault Rifle Ballistic Cannon Advanced Assault Cannon Launcher Shock Bomb Launcher Impact Weapon Makeshift Hammer Piercing Weapon CR-A16's Pointy Stick Build | -11 -10 -10 -10 -9 -8 -7 -7 -6 -6 ------- Run | Scr Mat Min Exi Min Mat Fac Low Zio Dee Slots Evolved 6 | . . . . . 4 2 . . . Power . | . . . . . . . . . . Propulsion . | . . . . . . . . . . Utility 6 | . . . . . 4 2 . . . Weapon . | . . . . . . . . . . Parts Attached 67 | 11 5 . . 1 9 6 4 22 9 Power 5 | 1 . . . . 1 1 1 1 . Engine 1 | 1 . . . . . . . . . Core 4 | . . . . . 1 1 1 1 . Reactor . | . . . . . . . . . . Propulsion 12 | 6 2 . . . 1 . . 3 . Treads . | . . . . . . . . . . Leg 1 | . . . . . . . . 1 . Wheel 11 | 6 2 . . . 1 . . 2 . Hover . | . . . . . . . . . . Flight . | . . . . . . . . . . Utility 23 | 2 1 . . 1 4 3 2 8 2 Device 14 | 1 . . . 1 2 1 1 7 1 Storage 5 | 1 1 . . . 1 . 1 1 . Processor 3 | . . . . . 1 1 . . 1 Hackware . | . . . . . . . . . . Protection 1 | . . . . . . 1 . . . Artifact . | . . . . . . . . . . Weapon 27 | 2 2 . . . 3 2 1 10 7 Energy Gun 2 | 1 . . . . 1 . . . . Energy Cannon 8 | . . . . . . . . 5 3 Ballistic Gun 10 | 1 2 . . . 2 1 . 4 . Ballistic Cannon 1 | . . . . . . . . . 1 Launcher 4 | . . . . . . 1 1 . 2 Special Weapon . | . . . . . . . . . . Impact Weapon 1 | . . . . . . . . 1 . Slashing Weapon . | . . . . . . . . . . Piercing Weapon 1 | . . . . . . . . . 1 Special Melee Weapon . | . . . . . . . . . . Unidentified Prototypes 5 | . . . . . 1 . . 4 . Corrupted Parts 1 | . . . . . . . . 1 . System Corruption 1 | . . . . . . . . 1 . Parts Lost 22 | . . . . . 2 1 . 7 12 Power 3 | . . . . . . 1 . 1 1 Propulsion 4 | . . . . . 1 . . 1 2 Utility 7 | . . . . . . . . 3 4 Weapon 8 | . . . . . 1 . . 2 5 Highest Loss Streak 11 | . . . . . 2 1 . 2 11 To Critical Strikes . | . . . . . . . . . . Average Slot Usage (%) 97 | . 100 100 100 100 97 96 100 97 86 Engine 2 | . 14 14 14 14 1 . . . . Core 5 | . . . . . 7 6 7 6 6 Wheel 16 | . 28 28 28 28 16 15 15 13 13 Device 21 | . 14 14 14 14 26 23 23 22 18 Storage 15 | . 14 14 14 14 18 15 15 14 15 Processor 11 | . . . . . 9 12 15 15 17 Protection 4 | . . . . . . 6 7 6 . Energy Cannon 1 | . . . . . . . . 1 8 Ballistic Gun 12 | . 20 28 28 28 17 14 13 9 . Launcher 1 | . . . . . . . 1 2 . Naked Turns . | . . . . . . . . . . Heaviest Build 125 | 15 92 92 92 95 105 112 120 125 110 Greatest Support 32 | 32 24 24 24 24 24 24 24 24 24 Greatest Overweight (x) 9 | 1 8 3 3 3 8 4 4 9 4 Average Overweight (x) 4 | . 3 3 3 3 4 4 4 4 4 Largest Inventory Capacity 25 | 8 25 25 25 25 25 25 25 25 25 Average Capacity 24 | 7 24 25 25 25 25 25 25 25 25 Most Carried 25 | 8 23 23 25 25 25 25 25 25 25 Average Carried 23 | 4 15 23 23 24 22 24 25 24 23 Final Capacity 25 | 8 25 25 25 25 25 25 25 25 25 Final Carried 25 | 8 23 23 25 25 24 25 25 24 20 Class Distribution -------------------- 58% | Scavenger-Mutant 41% | Mutant Dominant Class ---------------- Mutant | -10/Materials Mutant | -10/Mines Mutant | -10/Exiles Mutant | -9/Mines Mutant | -8/Materials Mutant | -7/Factory Mutant | -7/Lower Caves Scavenger-Mutant | -6/Zion Scavenger-Mutant | -6/Deep Caves Resources | -11 -10 -10 -10 -9 -8 -7 -7 -6 -6 ----------- Run | Scr Mat Min Exi Min Mat Fac Low Zio Dee Matter Collected 1589 | 322 50 13 . 153 205 118 76 618 34 Remotely . | . . . . . . . . . . Salvage Created 1699 | 89 225 . . 42 238 295 118 657 35 Parts 100 | 3 9 . . . 8 9 8 63 . Haulers Intercepted 1 | . . . . . 1 . . . . Recyclers Shooed . | . . . . . . . . . . Parts Field Recycled . | . . . . . . . . . . Retrieved Matter . | . . . . . . . . . . Parts Self-Destructed 5 | . . . . . . . 3 2 . Prevented 5 | . . . . . . . 5 . . Kills | -11 -10 -10 -10 -9 -8 -7 -7 -6 -6 ------- Run | Scr Mat Min Exi Min Mat Fac Low Zio Dee Combat Hostiles Destroyed 24 | . 5 . . 3 4 4 4 1 3 Guns 17 | . 5 . . 3 4 2 2 1 . Cannons 1 | . . . . . . . . . 1 AOE 5 | . . . . . . 1 2 . 2 Classes Destroyed 12 | 2 1 . . 2 2 1 1 3 . Tunneler 1 | 1 . . . . . . . . . Hauler 1 | . . . . . 1 . . . . Recycler 1 | 1 . . . . . . . . . Mechanic 1 | . . . . . . 1 . . . Swarmer 4 | . . . . . . . 4 . . Grunt 12 | . 5 . . . 3 4 . . . Sentry 1 | . . . . . 1 . . . . Demolisher 1 | . . . . 1 . . . . . Zionite 35 | . . . . . . . . 35 . Tinkerer 1 | . . . . . . . . 1 . Assembled 5 | . . . . 2 . . . . 3 Mutant 1 | . . . . . . . . 1 . Best Kill Streak 11 | 2 3 . . 2 2 5 3 11 3 Combat Bots Only 4 | . 3 . . 2 2 4 3 1 3 Max Kills in Single Turn 1 | 1 1 . . 1 1 1 1 1 1 Gunslinging . | . . . . . . . . . . Exploded 1 | . . . . . . 1 1 . 1 Melee . | . . . . . . . . . . Uniques/NPCs Destroyed . | . . . . . . . . . . Combat | -11 -10 -10 -10 -9 -8 -7 -7 -6 -6 -------- Run | Scr Mat Min Exi Min Mat Fac Low Zio Dee Damage Taken 3582 | . 184 . . 255 157 230 90 1494 1172 Core 873 | . 28 . . 92 34 37 . 396 286 Absorbed by Shields 139 | . . . . . 59 45 35 . . Regen/Repaired (Parts) 478 | . . . . . . . . 478 . Core Remaining (%) 81 | 100 . . . 52 93 . . . . Volleys Fired 201 | 4 15 . . 11 20 16 6 106 23 Largest 2 | 2 2 . . 2 2 2 1 2 2 Hottest 175 | 60 46 . . 46 46 46 36 123 175 Shots Fired 320 | 8 30 . . 22 40 21 6 165 28 Gun 248 | 8 30 . . 22 40 16 2 130 . Cannon 57 | . . . . . . . . 35 22 Launcher 15 | . . . . . . 5 4 . 6 Special . | . . . . . . . . . . Kinetic 247 | 4 30 . . 22 40 16 2 130 3 Thermal 51 | . . . . . . . . 35 16 Explosive 4 | . . . . . . . . . 4 Electromagnetic 18 | 4 . . . . . 5 4 . 5 Robot Hit Streak 12 | 4 12 . . 6 8 11 2 12 4 Robot Miss Streak 5 | 2 2 . . 4 4 1 1 3 5 Penetration Max . | . . . . . . . . . . Secondary Targets 2 | . 1 . . 1 . . . . . Max Gunslinging Chain 1 | . 1 . . 1 . . . . . Shots Hit Robots 215 | 5 24 . . 14 25 19 2 115 11 Core Hits 92 | 3 9 . . 6 8 9 7 39 11 Critical Kills . | . . . . . . . . . . Critical Parts Destroyed 4 | . . . . . . 1 . 3 . Critical Strikes 4 | . . . . . . 1 . 3 . Destroy 3 | . . . . . . 1 . 2 . Smash 1 | . . . . . . . . 1 . Melee Attacks 22 | . . . . . . . . 21 1 Impact 21 | . . . . . . . . 21 . Slashing . | . . . . . . . . . . Piercing 1 | . . . . . . . . . 1 Sneak Attacks . | . . . . . . . . . . Combat Hostiles . | . . . . . . . . . . Follow-up Attacks . | . . . . . . . . . . Damage Inflicted 5450 | 91 367 . . 233 429 544 235 3025 526 Guns 3242 | 91 367 . . 233 429 248 32 1842 . Cannons 1124 | . . . . . . . . 820 304 Explosions 889 | . . . . . . 296 203 231 159 Melee 195 | . . . . . . . . 132 63 Ramming . | . . . . . . . . . . Kinetic 3217 | 37 367 . . 233 429 248 32 1842 29 Thermal 1322 | . . . . . . . . 1051 271 Explosive 118 | . . . . . . . . . 118 Electromagnetic 598 | 54 . . . . . 296 203 . 45 Impact 132 | . . . . . . . . 132 . Slashing . | . . . . . . . . . . Piercing 63 | . . . . . . . . . 63 Highest Corruption 1 | . . . . . . . . 1 1 Average Corruption 1 | . . . . . . . . 1 1 Corruption Purged . | . . . . . . . . . . Corruption Blocked . | . . . . . . . . . . Effects 5 | . . . . . . . . 2 3 Message Errors 2 | . . . . . . . . . 2 Matter Fused 2 | . . . . . . . . 1 1 Weapon Failures 1 | . . . . . . . . 1 . Overload Shots . | . . . . . . . . . . Overflow Damage 228 | . . . . . . . . 186 42 Projectiles 27 | . . . . . . . . 27 . Explosions 71 | . . . . . . . . 71 . Melee 130 | . . . . . . . . 88 42 Knockbacks . | . . . . . . . . . . Impact . | . . . . . . . . . . Kinetic . | . . . . . . . . . . Secondary . | . . . . . . . . . . Self-Inflicted Damage 107 | . . . . . . . 6 62 39 Shots 4 | . . . . . . . 1 2 1 Rammed . | . . . . . . . . . . Targets Rammed . | . . . . . . . . . . Kicked . | . . . . . . . . . . Crushed . | . . . . . . . . . . Highest Temperature 408 | . 14 . . . . 10 . 408 205 Average Temperature 105 | . 6 . . . . 3 . 127 103 Received Heat Transfer 778 | . 99 . . . 48 132 . 112 387 Effects 2 | . . . . . . . . 2 . Matter Decay 1 | . . . . . . . . 1 . Damage (minor) 1 | . . . . . . . . 1 . Siege Activations . | . . . . . . . . . . Robots Corrupted 1 | . . . . . . 1 . . . Combat Hostiles 1 | . . . . . . 1 . . . Parts Fried 6 | . . . . . . 2 2 2 . Impact Corruptions 3 | . . . . . . . . 3 . Robots Melted . | . . . . . . . . . . Combat Hostiles . | . . . . . . . . . . Parts Melted 2 | . . . . . . . . 2 . Heat Transferred 699 | . . . . . . . . 607 92 Parts Sabotaged . | . . . . . . . . . . Parts Stolen . | . . . . . . . . . . Parts Stripped . | . . . . . . . . . . Power Chain Reactions 2 | . . . . . . . . 2 . Missiles Intercepted . | . . . . . . . . . . Alert | -11 -10 -10 -10 -9 -8 -7 -7 -6 -6 ------- Run | Scr Mat Min Exi Min Mat Fac Low Zio Dee Peak Influence 166 | 10 166 64 . 30 118 144 . . . Initial 64 | . 6 64 . . 11 6 . . . Average 62 | 3 53 64 . 5 65 104 . . . Maximum Alert Level . | . . . . . . . . . . Low Security (%) 100 | 100 100 100 . 100 100 100 . . . Level 1 . | . . . . . . . . . . Level 2 . | . . . . . . . . . . Level 3 . | . . . . . . . . . . Level 4 . | . . . . . . . . . . Level 5 . | . . . . . . . . . . High Security . | . . . . . . . . . . Max Security . | . . . . . . . . . . Squads Dispatched 5 | . 1 . . 1 2 1 . . . Investigation 4 | . 1 . . 1 1 1 . . . Extermination . | . . . . . . . . . . Reinforcement 1 | . . . . . 1 . . . . Assault . | . . . . . . . . . . Garrison . | . . . . . . . . . . Intercept . | . . . . . . . . . . Searches Triggered . | . . . . . . . . . . Construction Impeded . | . . . . . . . . . . Haulers Reinforced . | . . . . . . . . . . Active Scanning Responses . | . . . . . . . . . . Cargo Convoy Interrupts . | . . . . . . . . . . Stealth | -11 -10 -10 -10 -9 -8 -7 -7 -6 -6 --------- Run | Scr Mat Min Exi Min Mat Fac Low Zio Dee Distress Signals 2 | . 2 . . . . . . . . Communications Jammed . | . . . . . . . . . . Distress Signals . | . . . . . . . . . . Times Spotted 84 | . 7 . . 3 8 6 5 49 6 Peak Tracking Total 8 | . 4 . . 2 3 4 4 8 3 Tactical Retreats 3 | . . . . . . 1 1 1 . Traps | -11 -10 -10 -10 -9 -8 -7 -7 -6 -6 ------- Run | Scr Mat Min Exi Min Mat Fac Low Zio Dee Traps Triggered 1 | . . . . . 1 . . . . Indirectly . | . . . . . . . . . . Trap Hack Attempts . | . . . . . . . . . . Triggered . | . . . . . . . . . . Disarmed . | . . . . . . . . . . Reprogrammed . | . . . . . . . . . . Reused . | . . . . . . . . . . Traps Extracted . | . . . . . . . . . . Installed . | . . . . . . . . . . Triggered . | . . . . . . . . . . Machines | -11 -10 -10 -10 -9 -8 -7 -7 -6 -6 ---------- Run | Scr Mat Min Exi Min Mat Fac Low Zio Dee Machines Disabled 5 | . . . . . . 2 . 3 . Max in Single Turn 1 | . . . . . . 1 . . . Machines Sabotaged . | . . . . . . . . . . Garrisons Compromised . | . . . . . . . . . . Overloaded Fab Kills . | . . . . . . . . . . Hacking | -11 -10 -10 -10 -9 -8 -7 -7 -6 -6 --------- Run | Scr Mat Min Exi Min Mat Fac Low Zio Dee Machines Accessed 6 | . 1 . . 1 1 3 . . . Terminals 2 | . . . . . 1 1 . . . Fabricators 2 | . . . . . . 2 . . . Repair Stations . | . . . . . . . . . . Recycling Units 1 | . 1 . . . . . . . . Scanalyzers . | . . . . . . . . . . Garrison Access . | . . . . . . . . . . Total Hacks 12 | . 1 . . 1 4 6 . . . Successful 6 | . 1 . . 1 3 1 . . . Failed 6 | . . . . . 1 5 . . . Catastrophic 1 | . . . . . . 1 . . . Database Lockouts . | . . . . . . . . . . Manual 10 | . 1 . . . 2 6 . 1 . Terminals 6 | . . . . . 4 2 . . . Fabricators 4 | . . . . . . 4 . . . Repair Stations . | . . . . . . . . . . Recycling Units 1 | . 1 . . . . . . . . Scanalyzers . | . . . . . . . . . . Garrison Access . | . . . . . . . . . . Terminal Hacks 4 | . . . . 1 3 . . . . Record 1 | . . . . . 1 . . . . Robot Analysis 2 | . . . . . 2 . . . . Open Door 1 | . . . . 1 . . . . . Fabricator Hacks . | . . . . . . . . . . Repair Station Hacks . | . . . . . . . . . . Recycling Unit Hacks . | . . . . . . . . . . Scanalyzer . | . . . . . . . . . . Garrison Access Hacks . | . . . . . . . . . . Unauthorized Hacks 2 | . 1 . . . . 1 . . . Terminals . | . . . . . . . . . . Fabricators 1 | . . . . . . 1 . . . Fabnet 1 | . . . . . . 1 . . . Repair Stations . | . . . . . . . . . . Recycling Units 1 | . 1 . . . . . . . . Tunnel 1 | . 1 . . . . . . . . Scanalyzers . | . . . . . . . . . . Garrison Access . | . . . . . . . . . . Data Cores Recovered . | . . . . . . . . . . Used . | . . . . . . . . . . Hacking Detections 3 | . . . . . 1 2 . . . Full Trace Events 2 | . . . . . 1 1 . . . Feedback Events . | . . . . . . . . . . Feedback Blocked . | . . . . . . . . . . Robot Schematics Acquired 4 | . . . . . . . . 4 . Robots Built . | . . . . . . . . . . Authchips . | . . . . . . . . . . Time . | . . . . . . . . . . Total Robot Build Rating . | . . . . . . . . . . Part Schematics Acquired 15 | . . . . . . . . 15 . Parts Built . | . . . . . . . . . . Authchips . | . . . . . . . . . . Time . | . . . . . . . . . . Total Part Build Rating . | . . . . . . . . . . Parts Repaired . | . . . . . . . . . . Time . | . . . . . . . . . . Parts Recycled . | . . . . . . . . . . Recycled Matter . | . . . . . . . . . . Retrieved Matter . | . . . . . . . . . . Retrieved Components . | . . . . . . . . . . Parts Scanalyzed . | . . . . . . . . . . Part Schematics Acquired . | . . . . . . . . . . Parts Damaged . | . . . . . . . . . . Bothacking | -11 -10 -10 -10 -9 -8 -7 -7 -6 -6 ------------ Run | Scr Mat Min Exi Min Mat Fac Low Zio Dee Used RIF Installer . | . . . . . . . . . . Robots Hacked . | . . . . . . . . . . Non-combat . | . . . . . . . . . . Combat . | . . . . . . . . . . Robot Hacks Applied . | . . . . . . . . . . Relay Couplers Released . | . . . . . . . . . . Fabnet Peak Effective % 3 | . . . . . . . . 3 3 Robots Rewired . | . . . . . . . . . . Allies Hacked . | . . . . . . . . . . Hacks Repelled . | . . . . . . . . . . Allies | -11 -10 -10 -10 -9 -8 -7 -7 -6 -6 -------- Run | Scr Mat Min Exi Min Mat Fac Low Zio Dee Total Allies 2 | . . . . . . . . 2 . Largest Group 2 | . . . . . . . . 2 . Highest-Rated Group 192 | . . . . . . . . 192 . Highest-Rated Ally 96 | . . . . . . . . 96 . Total Orders . | . . . . . . . . . . Ally Attacks 53 | . . . . . . . . 53 . Total Damage 1817 | . . . . . . . . 1817 . Kills 18 | . . . . . . . . 18 . Allies Corrupted 1 | . . . . . . . . 1 . Allies Melted . | . . . . . . . . . . Intel | -11 -10 -10 -10 -9 -8 -7 -7 -6 -6 ------- Run | Scr Mat Min Exi Min Mat Fac Low Zio Dee Robot Analysis Total 2 | . . . . . 2 . . . . Derelict Logs Recovered 3 | . . . . 2 . . 1 . . Drone Launches . | . . . . . . . . . . Drone Recoveries . | . . . . . . . . . . Exploration | -11 -10 -10 -10 -9 -8 -7 -7 -6 -6 ------------- Run | Scr Mat Min Exi Min Mat Fac Low Zio Dee Turns Passed 5959 | 89 287 72 455 201 470 425 370 3286 304 Spaces Moved 3381 | 63 147 54 335 119 223 247 234 1805 154 Core 12 | 12 . . . . . . . . . Treads . | . . . . . . . . . . Legs . | . . . . . . . . . . Wheels 3369 | 51 147 54 335 119 223 247 234 1805 154 Hover . | . . . . . . . . . . Flight . | . . . . . . . . . . Fastest Speed 50 | 50 80 135 135 135 150 150 150 135 150 Average Speed 151 | 80 135 135 135 135 155 150 150 160 150 Slowest Speed 225 | 100 200 135 135 135 210 150 150 225 150 Overloaded Moves . | . . . . . . . . . . Propulsion Burnouts . | . . . . . . . . . . Robots Hopped . | . . . . . . . . . . Cave-ins Triggered . | . . . . . . . . . . Exploration Rate (%) 34 | 4 32 28 79 18 25 10 36 89 27 Regions Visited 9 Branch Regions 6 Pre-discovered Areas 3 | . 1 . . . . . 1 1 . Known Exits Taken 4 | . . . . . 1 1 1 1 . Unknown Exits Taken 5 | 1 1 1 1 1 . . . . . Scrap Searched 4 | . . 1 . . . . . 3 . Spaces Dug 2 | . . . . . . . . 2 . Terrain Destroyed 53 | . . . . . . . . 5 48 Melee 2 | . . . . . . . . 2 . Projectile 10 | . . . . . . . . 3 7 AOE 41 | . . . . . . . . . 41 Terrain Rammed . | . . . . . . . . . . Walls Destroyed . | . . . . . . . . . . Machines Disabled . | . . . . . . . . . . Actions | -11 -10 -10 -10 -9 -8 -7 -7 -6 -6 --------- Run | Scr Mat Min Exi Min Mat Fac Low Zio Dee Total 3867 | 90 205 53 338 139 306 281 246 2012 197 Wait 96 | . 19 . 2 1 46 8 1 14 5 Move 3372 | 62 146 53 334 118 222 246 233 1804 154 Hop . | . . . . . . . . . . Pick Up 66 | 11 16 . 2 3 6 3 . 23 2 Fast Attach 19 | 6 . . . 1 2 2 2 6 . Attach 24 | 3 . . . . 6 1 . 8 6 Detach 4 | . . . . 1 . . . 2 1 Swap 24 | 2 5 . . . 1 3 2 8 3 Drop 39 | 2 4 . . 4 3 2 2 20 2 Fire 201 | 4 15 . . 11 20 16 6 106 23 Melee 22 | . . . . . . . . 21 1 Ram . | . . . . . . . . . . Kick . | . . . . . . . . . . Crush . | . . . . . . . . . . Escape Stasis . | . . . . . . . . . . Rewire . | . . . . . . . . . . Trap . | . . . . . . . . . . Miscellaneous . | . . . . . . . . . . Route ------- -11/Scrapyard -10/Materials -10/Mines -10/Exiles -9/Mines -8/Materials (discovered 2 exits: *Fac x2) -7/Factory -7/Lower Caves (discovered 2 exits: Low / *Zio) -6/Zion (discovered 2 exits: *Dee / [*Pro]) -6/Deep Caves History --------- Turn | Location | Event 23 | -11/Scrapyard | Discovered new exit (range 16) 90 | -11/Scrapyard | Entered Materials 308 | -10/Materials | Build established: Mutant 350 | -10/Materials | Discovered new exit (range 15) 377 | -10/Materials | Entered Mines 444 | -10/Mines | Deemed a non-threat by the Exiles lab entrance 444 | -10/Mines | Discovered new exit (range 5) 449 | -10/Mines | Entered Exiles 484 | -10/Exiles | Met 8R-AWN 507 | -10/Exiles | Met EX-HEX 543 | -10/Exiles | Met EX-BIN 562 | -10/Exiles | Met EX-DEC 641 | -10/Exiles | Visited The Gauntlet 894 | -10/Exiles | Discovered new exit (range 10) 904 | -10/Exiles | Entered Mines 910 | -9/Mines | Met a Derelict shopkeep closing up shop 939 | -9/Mines | Assembled infested the area 944 | -9/Mines | Assisted by a Guerilla fighting off Assembled 1061 | -9/Mines | Learned location of 1 exit from Lower Caves 1064 | -9/Mines | Discovered new exit (range 8) 1097 | -9/Mines | Learned 4 Materials zone layouts 1105 | -9/Mines | Entered Materials 1105 | -8/Materials | Evolved 4 slots: Utility x4 1106 | -8/Materials | Identified exit to Factory 1480 | -8/Materials | Discovered exit to Factory (range 5) 1575 | -8/Materials | Entered Factory 1575 | -7/Factory | Evolved 2 slots: Utility x2 1970 | -7/Factory | Discovered new exit (range 10) 1999 | -7/Factory | Identified exit to Lower Caves 2000 | -7/Factory | Entered Lower Caves 2001 | -7/Lower Caves | Identified exit to Lower Caves 2335 | -7/Lower Caves | A Derelict revealed a hidden shortcut to a safe place 2340 | -7/Lower Caves | Identified exit to Zion 2370 | -7/Lower Caves | Entered Zion 2387 | -6/Zion | Given A8's code to call for help 2529 | -6/Zion | Discovered new exit (range 16) 2584 | -6/Zion | Build established: Scavenger-Mutant 3140 | -6/Zion | Learned Factory emergency access door positions 3144 | -6/Zion | Found CR-A16's Pointy Stick 3285 | -6/Zion | Visited the Megawrench Repair Shop 3626 | -6/Zion | Megawrench repaired 12 parts 3877 | -6/Zion | Given the Hacking Drone Bay 3878 | -6/Zion | Found Prototype Device 4767 | -6/Zion | Enhanced Grunt warped into view, answering call for help 4767 | -6/Zion | Enhanced Grunt warped into view, answering call for help 4950 | -6/Zion | Attacked by Zionites 4975 | -6/Zion | Found Corrupted Prototype Device 5241 | -6/Zion | Identified Exp. Thermal Shield 5242 | -6/Zion | Identified Hacking Drone Bay 5448 | -6/Zion | Core integrity fell below 50% 5647 | -6/Zion | Discovered new exit (range 5) 5649 | -6/Zion | Saw the warning signs outside the Deep Caves entrance 5652 | -6/Zion | Identified exit to Deep Caves 5656 | -6/Zion | Entered Deep Caves 5792 | -6/Deep Caves | Found Surveybot 24 Chip 5794 | -6/Deep Caves | Found Surveybot 24 Scanner 5920 | -6/Deep Caves | Attacked by Z-Imprinter 5954 | -6/Deep Caves | Core integrity fell below 20% 5960 | -6/Deep Caves | Destroyed by Z-Imprinter with Zionite Laser-M Last Messages --------------- 05843_ Imp. Grenade Launcher destroyed. 05849_ as-92549 destroyed. 05850_ System corrupted: Matter fused (-6). 05865_ Acquired 15 matter. 05912_ NEW_ZION: Z-Facility proximity alert. Z-Imprinter: GET AWAY FROM HERE! I've worked too hard for our future just to have you ruin everything! 05927_ Surveybot 24 Chip destroyed. 05934_ Phase Cannon destroyed. 05935_ 9%VMC,7C,&MHR, :F5J9EXMIGAFQF Y|